bitfinex-derivatives/quotes_BTCF0:USTF0_20241213
["timestamp","ask_amount","ask_price","bid_price","bid_amount"]
[1734075747347,0.1,100100.0,100090.0,1.7134906]
[1734075747742,0.21969105,100100.0,100090.0,1.3623709]
[1734075748052,0.21969105,100100.0,100090.0,1.65832232]
[1734075748258,0.21969105,100100.0,100090.0,1.4801146]
[1734075748553,0.21969105,100100.0,100090.0,1.36238675]
[1734075749148,0.21969105,100100.0,100090.0,1.4801146]
[1734075750551,0.21969105,100100.0,100090.0,1.71378117]
[1734075751555,0.21969105,100100.0,100090.0,1.71374416]
[1734075753351,0.21969105,100100.0,100090.0,1.4801146]
[1734075753550,0.21969105,100100.0,100090.0,1.18415771]
[1734075753857,0.21969105,100100.0,100090.0,1.4801146]
[1734075754245,0.21969105,100100.0,100090.0,1.71406903]
[1734075755553,0.21969105,100100.0,100090.0,1.4801146]
[1734075756251,0.21969105,100100.0,100090.0,1.7137919]
[1734075756655,0.21969105,100100.0,100090.0,1.47588122]
[1734075756851,0.21969105,100100.0,100090.0,1.71381067]
[1734075757047,0.21969105,100100.0,100090.0,1.713811]
[1734075757252,0.21969105,100100.0,100090.0,1.47588122]
[1734075757756,0.21969105,100100.0,100090.0,1.55752023]
[1734075757962,0.36932088,100100.0,100090.0,1.26924618]
[1734075758163,0.43182088,100100.0,100090.0,1.26924618]
[1734075758359,0.31212983,100100.0,100090.0,1.26924618]
[1734075759759,0.31212983,100100.0,100090.0,0.90844618]
[1734075760258,0.31212983,100100.0,100090.0,1.09074812]
[1734075760662,0.31212983,100100.0,100090.0,0.72994812]
[1734075760863,0.31212983,100100.0,100090.0,0.90851345]
[1734075761763,0.49173799,100100.0,100090.0,0.53927345]
[1734075762159,0.85253799,100100.0,100090.0,0.53927345]
[1734075762353,0.85253799,100100.0,100090.0,0.30131028]
[1734075762556,0.70290816,100100.0,100090.0,0.30131028]
[1734075763162,0.85263168,100100.0,100090.0,0.30131028]
[1734075763971,0.85263168,100100.0,100090.0,0.2384482]
[1734075763972,0.75285016,100100.0,100090.0,0.2384482]
[1734075764268,0.91561733,100100.0,100090.0,0.051947]
[1734075764460,0.91561733,100100.0,100090.0,0.11480908]
[1734075764661,0.75289363,100100.0,100090.0,0.11480908]
[1734075764857,0.63610408,100100.0,100090.0,0.11480908]
[1734075765168,0.81569763,100100.0,100090.0,0.051947]
[1734075765557,1.11569763,100100.0,100090.0,0.051947]
[1734075766569,0.93610408,100100.0,100090.0,0.051947]
[1734075766767,1.27841616,100100.0,100090.0,0.002]
[1734075766967,1.30726116,100100.0,100090.0,0.002]
[1734075767472,1.09887125,100100.0,100090.0,0.002]
[1734075767669,1.30726116,100100.0,100090.0,0.002]
[1734075767966,1.30726116,100100.0,100070.0,0.29138241]
[1734075767967,0.049952,100080.0,100070.0,0.29138241]
[1734075768164,0.049952,100080.0,100070.0,0.11281708]
[1734075768165,0.85944833,100080.0,100070.0,0.11281708]
[1734075768362,0.56033468,100080.0,100070.0,0.11281708]
[1734075768561,0.80387805,100080.0,100070.0,0.11281708]
[1734075769469,0.86674013,100080.0,100070.0,0.11281708]
[1734075769778,0.80387805,100080.0,100070.0,0.11281708]
[1734075770163,0.62437883,100080.0,100070.0,0.11281708]
[1734075770479,0.68724091,100080.0,100070.0,0.11581708]
[1734075770769,1.62746518,100080.0,100070.0,0.052955]
[1734075770975,1.47793835,100080.0,100070.0,0.052955]
[1734075771871,1.41507627,100080.0,100070.0,0.052955]
[1734075772064,1.47993835,100080.0,100070.0,0.050955]
[1734075772265,1.48093835,100080.0,100070.0,0.050955]
[1734075772568,1.63018738,100080.0,100070.0,0.050955]
[1734075772772,1.48906773,100080.0,100070.0,0.050955]
[1734075773275,1.63825851,100080.0,100070.0,0.050955]
[1734075774468,1.45875929,100080.0,100070.0,0.050955]
[1734075774674,1.63825851,100080.0,100070.0,0.050955]
[1734075775475,1.33825851,100080.0,100070.0,0.11381708]
[1734075775669,1.45875929,100080.0,100070.0,0.050955]
[1734075775975,1.33825851,100080.0,100070.0,0.050955]
[1734075776167,1.15875929,100080.0,100070.0,0.050955]
[1734075776775,1.27800978,100080.0,100070.0,0.050955]
[1734075777275,1.57800978,100080.0,100070.0,0.050955]
[1734075777475,1.27800978,100080.0,100070.0,0.050955]
[1734075777677,1.57800978,100080.0,100070.0,0.050955]
[1734075777869,1.27800978,100080.0,100070.0,0.050955]
[1734075783178,1.22162137,100080.0,100070.0,0.050955]
[1734075783780,1.15875929,100080.0,100070.0,0.050955]
[1734075783979,1.22162137,100080.0,100070.0,0.001]
[1734075784281,1.34087318,100080.0,100070.0,0.001]
[1734075784674,1.22162137,100080.0,100070.0,0.001]
[1734075786385,1.40112059,100080.0,100070.0,0.001]
[1734075786769,1.27415851,100080.0,100070.0,0.001]
[1734075786972,1.09465929,100080.0,100070.0,0.06386208]
[1734075787180,1.09465929,100080.0,100070.0,0.050957]
[1734075788086,1.27415851,100080.0,100070.0,0.050957]
[1734075788476,1.33702059,100080.0,100070.0,0.050957]
[1734075789285,1.27415851,100080.0,100070.0,0.050957]
[1734075790275,1.18782981,100080.0,100070.0,0.050957]
[1734075790684,1.27427448,100080.0,100070.0,0.050957]
[1734075791288,1.12496773,100080.0,100070.0,0.050957]
[1734075791586,1.18782981,100080.0,100070.0,0.050957]
[1734075792184,1.12496773,100080.0,100070.0,0.050957]
[1734075793684,1.12496773,100080.0,100070.0,0.001]
[1734075793883,1.18782981,100080.0,100070.0,0.001]
[1734075794280,1.00833059,100080.0,100070.0,0.001]
[1734075794686,1.18780382,100080.0,100070.0,0.001]
[1734075795191,1.00833059,100080.0,100070.0,0.001]
[1734075795694,1.1878757,100080.0,100070.0,0.001]
[1734075796198,1.18787677,100080.0,100070.0,0.001]
[1734075796593,0.82707677,100080.0,100070.0,0.001]
[1734075796884,1.18787677,100080.0,100070.0,0.001]
[1734075797093,0.68787677,100080.0,100070.0,0.001]
[1734075797392,0.73782877,100080.0,100070.0,0.001]
[1734075798192,0.73782877,100080.0,100070.0,0.17956533]
[1734075798791,0.7666725,100080.0,100070.0,0.001]
[1734075799583,1.0048324,100080.0,100070.0,0.001]
[1734075800590,0.7666725,100080.0,100070.0,0.001]
[1734075801387,0.70381042,100080.0,100070.0,0.001]
[1734075801695,0.7666725,100080.0,100070.0,0.001]
[1734075801881,1.0048324,100080.0,100070.0,0.001]
[1734075805683,0.7666725,100080.0,100070.0,0.001]
[1734075806689,0.34301042,100080.0,100070.0,0.001]
[1734075807394,0.4058725,100080.0,100070.0,0.001]
[1734075807798,0.34301042,100080.0,100070.0,0.001]
[1734075810198,0.34301042,100080.0,100070.0,0.050957]
[1734075810602,0.4058725,100080.0,100070.0,0.050957]
[1734075811705,0.7666725,100080.0,100070.0,0.050957]
[1734075812292,0.7666725,100080.0,100070.0,0.001]
[1734075812499,1.0048324,100080.0,100070.0,0.001]
[1734075815705,0.7666725,100080.0,100070.0,0.001]
[1734075816298,1.0048324,100080.0,100070.0,0.001]
[1734075816800,1.00628659,100080.0,100070.0,0.001]
[1734075817000,0.79644249,100080.0,100070.0,0.001]
[1734075818599,0.79644249,100080.0,100070.0,1e-06]
[1734075818600,1.09644249,100080.0,100070.0,1e-06]
[1734075818801,0.049962,100060.0,100040.0,0.47776954]
[1734075819004,0.049962,100060.0,100040.0,0.061]
[1734075819005,0.4534703,100050.0,100040.0,0.061]
[1734075819211,0.56083363,100050.0,100040.0,0.061]
[1734075819511,0.42259878,100050.0,100040.0,0.061]
[1734075820503,0.21275413,100050.0,100040.0,0.061]
[1734075820807,0.22175413,100050.0,100040.0,0.062]
[1734075821603,0.40624579,100050.0,100040.0,0.062]
[1734075823801,0.58755413,100050.0,100040.0,0.062]
[1734075824005,0.61785413,100050.0,100040.0,0.062]
[1734075824396,0.82769878,100050.0,100040.0,0.062]
[1734075825096,0.61785413,100050.0,100040.0,0.062]
[1734075825297,0.25705413,100050.0,100040.0,0.062]
[1734075825507,0.61785413,100050.0,100040.0,0.062]
[1734075825705,0.7971509,100050.0,100040.0,0.062]
[1734075826518,0.44461044,100050.0,100040.0,0.062]
[1734075826708,0.44461044,100050.0,100040.0,0.12486208]
[1734075827308,0.38174836,100050.0,100040.0,0.12486208]
[1734075828418,0.53108936,100050.0,100040.0,0.12486208]
[1734075832818,0.53108936,100050.0,100040.0,0.062]
[1734075833120,0.95475144,100050.0,100040.0,0.062]
[1734075833312,0.80541044,100050.0,100040.0,0.062]
[1734075836608,0.59391087,100050.0,100040.0,0.062]
[1734075836813,0.35175202,100050.0,100040.0,0.53563408]
[1734075837016,0.32145202,100050.0,100040.0,0.53563408]
[1734075837216,0.4408782,100050.0,100040.0,0.63563408]
[1734075837424,0.32145202,100050.0,100040.0,0.63563408]
[1734075838409,0.50074879,100050.0,100040.0,0.63563408]
[1734075839210,0.50074879,100050.0,100040.0,0.58566208]
[1734075839421,0.50074879,100050.0,100040.0,0.22486208]
[1734075840212,0.56361087,100050.0,100040.0,0.162]
[1734075840519,0.56361087,100050.0,100040.0,0.1314]
[1734075840520,0.77511044,100050.0,100040.0,0.1314]
[1734075841017,0.80771044,100050.0,100040.0,0.1314]
[1734075844428,0.62841367,100050.0,100040.0,0.1314]
[1734075845127,0.83825832,100050.0,100040.0,0.1314]
[1734075848535,1.07641822,100050.0,100040.0,0.1314]
[1734075850625,1.07641822,100050.0,100040.0,0.101]
[1734075852431,1.09671989,100050.0,100040.0,0.101]
[1734075853132,0.88687524,100050.0,100040.0,0.101]
[1734075856040,0.64871534,100050.0,100040.0,0.101]
[1734075856634,0.28791534,100050.0,100040.0,0.101]
[1734075861940,0.28791534,100050.0,100040.0,0.133]
[1734075862540,0.49770556,100050.0,100040.0,0.133]
[1734075865735,0.28791534,100050.0,100040.0,0.133]
[1734075866840,0.28791534,100050.0,100040.0,0.182972]
[1734075869935,0.22505326,100050.0,100040.0,0.182972]
[1734075870130,0.28791534,100050.0,100040.0,0.24583408]
[1734075870339,0.49770556,100050.0,100040.0,0.24583408]
[1734075870532,0.49770556,100050.0,100040.0,0.182972]
[1734075870840,0.28791534,100050.0,100040.0,0.182972]
[1734075872844,0.22505326,100050.0,100040.0,0.182972]
[1734075873048,0.28791534,100050.0,100040.0,0.182972]
[1734075873340,0.28791534,100050.0,100040.0,0.213072]
[1734075873341,0.49770556,100050.0,100040.0,0.213072]
[1734075873644,0.28791534,100050.0,100040.0,0.213072]
[1734075876841,0.20207487,100050.0,100040.0,0.69959616]
[1734075877841,0.19381533,100050.0,100040.0,0.69959616]
[1734075878037,0.34360634,100050.0,100040.0,0.69959616]
[1734075878548,0.16379101,100050.0,100040.0,0.69959616]
[1734075880044,0.16379101,100050.0,100040.0,1.30042141]
[1734075880045,0.20961965,100050.0,100040.0,1.30042141]
[1734075880350,0.17981533,100070.0,100040.0,1.96233922]
[1734075880539,0.17981533,100070.0,100060.0,0.96014824]
[1734075880744,0.08001533,100070.0,100060.0,0.96014824]
[1734075880943,0.049948,100090.0,100080.0,0.049952]
[1734075881239,0.049948,100090.0,100080.0,0.53647616]
[1734075882153,0.05884079,100090.0,100080.0,0.53647616]
[1734075882849,0.1,100100.0,100080.0,1.26013824]
[1734075883055,0.1,100100.0,100090.0,0.53647116]
[1734075884951,0.1,100100.0,100090.0,0.53747116]
[1734075885549,0.1,100100.0,100090.0,0.53847116]
[1734075885743,0.1,100100.0,100090.0,0.47560908]
[1734075886053,0.1,100100.0,100090.0,0.50570908]
[1734075886457,0.1,100100.0,100090.0,0.56857116]
[1734075894356,0.1,100100.0,100090.0,0.92937116]
[1734075900560,0.0307,100110.0,100100.0,0.049942]
[1734075900769,0.0307,100110.0,100100.0,0.59932824]
[1734075900957,0.0307,100110.0,100100.0,0.53646616]
[1734075901868,0.0307,100110.0,100100.0,0.53746616]
[1734075902556,0.0307,100110.0,100100.0,0.53846616]
[1734075902557,0.0317,100110.0,100100.0,0.53846616]
[1734075902757,0.0317,100110.0,100100.0,0.60132824]
[1734075902959,0.17811404,100160.0,100150.0,0.049917]
[1734075903160,0.17811404,100160.0,100150.0,0.45356234]
[1734075903468,0.13239511,100160.0,100150.0,0.50347934]
[1734075903665,0.03377338,100160.0,100150.0,0.50347934]
[1734075905063,0.03377338,100160.0,100150.0,0.50447934]
[1734075906067,0.06497338,100160.0,100150.0,0.50447934]
[1734075906269,0.00127338,100160.0,100150.0,0.50447934]
[1734075906467,0.00127338,100160.0,100150.0,0.80447934]
[1734075906663,0.0936,100180.0,100150.0,0.90430834]
[1734075906870,0.0936,100180.0,100170.0,0.8671981]
[1734075907270,0.0633,100180.0,100170.0,0.9628892]
[1734075907768,0.0633,100180.0,100170.0,0.8671981]
[1734075908481,0.0633,100180.0,100170.0,0.9638892]
[1734075908661,0.0633,100180.0,100170.0,0.9648892]
[1734075909667,0.06467072,100180.0,100170.0,0.9648892]
[1734075915272,0.06604106,100180.0,100170.0,0.9648892]
[1734075917567,0.00274106,100180.0,100170.0,0.9648892]
[1734075918375,0.1,100200.0,100190.0,0.049897]
[1734075918579,0.1,100200.0,100190.0,0.8671881]
[1734075919885,0.1,100200.0,100190.0,0.8681881]
[1734075920584,0.1,100200.0,100190.0,0.3618]
[1734075920585,0.19980537,100200.0,100190.0,0.3618]
[1734075920777,0.19980537,100200.0,100180.0,0.410699]
[1734075920977,0.05126714,100190.0,100180.0,0.5063901]
[1734075922182,0.05126714,100190.0,100180.0,0.5073901]
[1734075922888,0.05126714,100190.0,100180.0,0.5083901]
[1734075923691,0.05226714,100190.0,100180.0,0.5083901]
[1734075925584,0.11496714,100190.0,100180.0,0.5083901]
[1734075926792,0.11520737,100190.0,100180.0,0.5083901]
[1734075928381,0.26355597,100190.0,100180.0,0.5083901]
[1734075929083,0.26355597,100190.0,100180.0,0.3628]
[1734075929387,0.29332141,100190.0,100180.0,0.002]
[1734075929579,0.29332141,100190.0,100180.0,0.3628]
[1734075930096,0.29332141,100190.0,100180.0,0.002]
[1734075930389,0.29332141,100190.0,100170.0,0.410707]
[1734075930390,0.049902,100180.0,100170.0,0.410707]
[1734075930577,0.37687603,100180.0,100170.0,0.3608]
[1734075930892,0.049907,100170.0,100160.0,0.5077601]
[1734075931082,0.113307,100170.0,100160.0,0.5064001]
[1734075931481,0.26216699,100170.0,100160.0,0.5064001]
[1734075931884,0.26377736,100170.0,100160.0,0.5064001]
[1734075932282,0.26377736,100170.0,100160.0,0.5074001]
[1734075932793,0.4418914,100170.0,100160.0,0.5074001]
[1734075932976,0.4438914,100170.0,100160.0,0.5074001]
[1734075933677,0.29503141,100170.0,100160.0,0.5074001]
[1734075934795,0.29503141,100170.0,100160.0,0.51650588]
[1734075938088,0.24512441,100170.0,100160.0,0.51650588]
[1734075938587,0.39454696,100170.0,100160.0,0.51650588]
[1734075939588,0.15303292,100170.0,100160.0,0.61219698]
[1734075939783,0.15303292,100170.0,100160.0,0.91219698]
[1734075940488,0.32753659,100180.0,100160.0,1.08995785]
[1734075940694,0.20979022,100210.0,100170.0,0.77985007]
[1734075940990,0.75115298,100230.0,100220.0,0.049882]
[1734075941193,0.73287298,100230.0,100200.0,0.8753431]
[1734075941394,0.46494309,100230.0,100220.0,0.0956911]
[1734075941688,0.61602019,100230.0,100220.0,0.049882]
[1734075942283,0.61602019,100230.0,100210.0,0.4564911]
[1734075942588,0.61465037,100230.0,100220.0,0.04851218]
[1734075942987,0.61465037,100230.0,100220.0,0.04951218]
[1734075943287,0.61565037,100230.0,100220.0,0.05051218]
[1734075943492,0.51582009,100230.0,100220.0,0.05051218]
[1734075943692,0.51582009,100230.0,100220.0,0.14620328]
[1734075943693,0.4572,100230.0,100220.0,0.14620328]
[1734075944185,0.507077,100230.0,100220.0,0.14620328]
[1734075944390,0.0648,100230.0,100220.0,0.50700328]
[1734075944892,0.032,100230.0,100220.0,0.50700328]
[1734075945088,0.032,100230.0,100220.0,0.60269438]
[1734075945294,0.032,100230.0,100220.0,0.50700328]
[1734075946393,0.031,100230.0,100220.0,0.51000328]
[1734075947486,0.080877,100230.0,100220.0,0.51000328]
[1734075947895,0.08224656,100230.0,100220.0,0.51000328]
[1734075948278,0.05124656,100230.0,100220.0,0.51000328]
[1734075948485,0.00136956,100230.0,100220.0,0.51000328]
[1734075951891,0.2327,100250.0,100240.0,0.049872]
[1734075952094,0.2327,100250.0,100240.0,0.8671631]
[1734075952985,0.2337,100250.0,100240.0,0.8681631]
[1734075953188,0.201,100250.0,100240.0,0.8691631]
[1734075959498,0.234,100250.0,100240.0,0.8691631]
[1734075960097,0.283867,100250.0,100240.0,0.773472]
[1734075962801,0.234,100250.0,100240.0,0.773472]
[1734075963001,0.283867,100250.0,100240.0,0.773472]
[1734075965703,0.316667,100250.0,100240.0,0.773472]
[1734075966803,0.316667,100250.0,100240.0,0.412672]
[1734075970508,0.32561257,100250.0,100240.0,0.412672]
[1734075970710,0.88185926,100250.0,100240.0,0.002]
[1734075971001,0.049872,100240.0,100230.0,0.3608]
[1734075971196,0.049877,100230.0,100220.0,0.051238]
[1734075971401,0.049877,100230.0,100220.0,0.049878]
[1734075971607,0.19900034,100230.0,100220.0,0.049878]
[1734075972707,0.19900034,100230.0,100220.0,0.053878]
[1734075973696,0.29469144,100230.0,100220.0,0.054878]
[1734075974111,0.22920034,100230.0,100220.0,0.054878]
[1734075975007,1.08054205,100230.0,100200.0,0.53866081]
[1734075975198,1.08054205,100230.0,100200.0,0.17786081]
[1734075975199,0.1455781,100210.0,100200.0,0.17786081]
[1734075975402,0.65561325,100210.0,100200.0,0.17786081]
[1734075975607,0.5063781,100210.0,100200.0,0.17786081]
[1734075975913,0.5063781,100210.0,100200.0,9.994e-05]
[1734075975914,0.65561325,100210.0,100200.0,9.994e-05]
[1734075976334,0.75540866,100210.0,100200.0,9.994e-05]
[1734075976503,0.65971756,100210.0,100200.0,0.01409994]
[1734075976802,0.75540866,100210.0,100200.0,0.01409994]
[1734075977108,0.049892,100200.0,100190.0,0.3608]
[1734075977303,0.1766831,100200.0,100190.0,0.3608]
[1734075977703,0.080992,100200.0,100190.0,0.3608]
[1734075978099,0.08106727,100200.0,100190.0,0.3608]
[1734075978607,0.08106727,100200.0,100190.0,0.410697]
[1734075979008,0.08106727,100200.0,100190.0,0.5063881]
[1734075979202,0.08606727,100200.0,100190.0,0.5073881]
[1734075979906,0.08906727,100200.0,100190.0,0.5063881]
[1734075980100,0.08906727,100200.0,100190.0,0.410697]
[1734075980913,0.08906727,100200.0,100190.0,0.3608]
[1734075980914,0.18475837,100200.0,100190.0,0.3608]
[1734075981208,0.049897,100190.0,100180.0,0.36229725]
[1734075981515,0.21088042,100190.0,100180.0,0.36229725]
[1734075982211,0.11518932,100190.0,100180.0,0.41219925]
[1734075982406,9.232e-05,100190.0,100180.0,0.50789035]
[1734075982606,9.232e-05,100190.0,100180.0,0.41519925]
[1734075983617,9.232e-05,100190.0,100180.0,0.51089035]
[1734075983804,9.232e-05,100190.0,100180.0,0.54249035]
[1734075985314,9.232e-05,100190.0,100180.0,0.44679925]
[1734075985614,0.04998932,100190.0,100180.0,0.41519925]
[1734075992015,0.04998932,100190.0,100180.0,0.00449725]
[1734075992316,0.11358932,100190.0,100180.0,0.00449725]
[1734075992723,0.20928042,100190.0,100180.0,0.00449725]
[1734075993607,0.57008042,100190.0,100180.0,0.00449725]
[1734075994218,0.049902,100180.0,100170.0,0.1]
[1734075994410,0.50649304,100180.0,100170.0,0.1]
[1734075994812,0.60620844,100180.0,100170.0,0.1]
[1734075995522,0.60620844,100180.0,100170.0,0.103]
[1734075995722,0.90620844,100180.0,100170.0,0.103]
[1734075995926,0.049912,100160.0,100150.0,0.00128]
[1734075996218,0.049917,100150.0,100140.0,0.54070965]
[1734075996616,0.049917,100150.0,100140.0,0.44501855]
[1734075997123,0.049917,100150.0,100140.0,0.54070965]
[1734075997516,0.049917,100150.0,100140.0,0.44501855]
[1734075997917,0.050917,100150.0,100140.0,0.54870965]
[1734075998112,0.001,100150.0,100140.0,0.54870965]
[1734075998318,0.08290377,100160.0,100150.0,0.049917]
[1734075998515,0.08290377,100160.0,100150.0,0.1456081]
[1734075998826,0.08190377,100160.0,100150.0,0.1456081]
[1734075999013,0.11510377,100160.0,100150.0,0.1456081]
[1734075999407,0.11510377,100160.0,100150.0,0.1476081]
[1734076000322,0.11510377,100160.0,100150.0,0.051917]
[1734076001017,0.11510377,100160.0,100150.0,0.002]
[1734076001616,0.76062687,100160.0,100150.0,0.002]
[1734076001918,0.66493577,100160.0,100150.0,0.002]
[1734076002527,0.76062687,100160.0,100150.0,0.002]
[1734076002915,1.17970858,100160.0,100150.0,0.002]
[1734076003113,0.049922,100140.0,100130.0,0.36091807]
[1734076003327,0.05002194,100140.0,100130.0,0.36091807]
[1734076003618,0.08262194,100140.0,100130.0,0.36091807]
[1734076003813,0.11392194,100140.0,100130.0,0.36091807]
[1734076004611,0.11392194,100140.0,100130.0,0.36491807]
[1734076004818,0.11492194,100140.0,100130.0,0.37291807]
[1734076005120,0.11492194,100140.0,100130.0,0.01211807]
[1734076006350,0.57548718,100140.0,100130.0,0.10780917]
[1734076006622,0.4932883,100150.0,100130.0,0.51853617]
[1734076006822,0.09986518,100140.0,100130.0,0.51853617]
[1734076007221,0.37420659,100150.0,100130.0,0.51853617]
[1734076007517,0.09986019,100140.0,100130.0,0.51853617]
[1734076007715,0.049922,100140.0,100130.0,0.51853617]
[1734076007916,0.14978219,100140.0,100130.0,0.51853617]
[1734076008326,0.14978219,100140.0,100130.0,0.51053617]
[1734076008622,0.14978219,100140.0,100130.0,0.51753617]
[1734076009027,0.15078219,100140.0,100130.0,0.51753617]
[1734076009623,0.15078219,100140.0,100130.0,0.15673617]
[1734076009915,0.15078219,100140.0,100130.0,0.51753617]
[1734076010329,0.001,100140.0,100130.0,0.91113617]
[1734076010630,0.001,100140.0,100130.0,0.94173617]
[1734076011729,0.049918,100150.0,100130.0,0.94173617]
[1734076011730,0.049918,100150.0,100140.0,0.049922]
[1734076011930,0.049918,100150.0,100140.0,0.5393131]
[1734076013323,0.050918,100150.0,100140.0,0.5463131]
[1734076013915,0.050918,100150.0,100140.0,0.5483131]
[1734076018031,0.001,100150.0,100140.0,0.6440042]
[1734076019116,0.049914,100160.0,100150.0,0.049917]
[1734076019324,0.28921218,100170.0,100160.0,0.049912]
[1734076019524,0.28921218,100170.0,100160.0,0.1456031]
[1734076020128,0.28921218,100170.0,100160.0,0.5064031]
[1734076020320,0.13923047,100170.0,100160.0,0.5064031]
[1734076020521,0.20840118,100180.0,100160.0,0.4866911]
[1734076020726,0.25830618,100180.0,100170.0,0.410707]
[1734076020927,0.35814145,100180.0,100170.0,0.410707]
[1734076021127,0.35814145,100180.0,100170.0,0.5063981]
[1734076021427,0.23905974,100180.0,100170.0,0.5063981]
[1734076021729,0.36714145,100180.0,100170.0,0.5063981]
[1734076021927,0.36714145,100180.0,100170.0,0.410707]
[1734076022321,0.35814145,100180.0,100170.0,0.413707]
[1734076022523,0.25830618,100180.0,100170.0,0.5093981]
[1734076022927,0.26330618,100180.0,100170.0,0.5093981]
[1734076023636,0.25830618,100180.0,100170.0,0.5093981]
[1734076024132,0.25830618,100180.0,100170.0,0.5399981]
[1734076025822,0.25830618,100180.0,100170.0,0.444307]
[1734076026232,0.25830618,100180.0,100170.0,0.003]
[1734076026626,0.28855254,100180.0,100170.0,0.003]
[1734076026820,0.19908671,100180.0,100170.0,0.003]
[1734076028431,0.28853436,100180.0,100170.0,0.003]
[1734076028636,0.28853436,100180.0,100170.0,0.3638]
[1734076029243,0.28853436,100180.0,100170.0,0.413707]
[1734076031036,0.16945265,100180.0,100170.0,0.413707]
[1734076036530,0.28853436,100180.0,100170.0,0.413707]
[1734076038637,0.16945265,100180.0,100170.0,0.413707]
[1734076039541,0.28853436,100180.0,100170.0,0.413707]
[1734076041426,0.19908671,100180.0,100170.0,0.413707]
[1734076043427,0.34832186,100180.0,100170.0,0.413707]
[1734076045433,0.34832186,100180.0,100170.0,0.052907]
[1734076045434,0.22924015,100180.0,100170.0,0.052907]
[1734076045634,0.22924015,100180.0,100170.0,0.413707]
[1734076046032,0.22924015,100180.0,100170.0,0.3638]
[1734076046234,0.22924015,100180.0,100170.0,0.003]
[1734076047429,0.22924015,100180.0,100170.0,0.18076087]
[1734076048038,0.22924015,100180.0,100170.0,0.23066787]
[1734076049741,0.25779402,100180.0,100170.0,0.46827919]
[1734076051245,0.32058973,100180.0,100170.0,0.23066787]
[1734076053637,0.25779402,100180.0,100170.0,0.29346358]
[1734076056352,0.17778902,100180.0,100170.0,0.29346358]
[1734076056645,0.57751951,100190.0,100180.0,0.049902]
[1734076056646,0.00917473,100190.0,100180.0,0.049902]
[1734076056835,0.60696093,100200.0,100190.0,0.049897]
[1734076057036,0.36946475,100200.0,100190.0,0.47349271]
[1734076057243,0.59091419,100200.0,100190.0,0.65137004]
[1734076057543,0.55881419,100200.0,100190.0,0.65137004]
[1734076057752,0.6216099,100200.0,100190.0,0.65137004]
[1734076057936,0.6306099,100200.0,100190.0,0.65237004]
[1734076058137,0.45099686,100200.0,100190.0,0.65237004]
[1734076058436,0.38820115,100200.0,100190.0,0.65237004]
[1734076058640,0.38820115,100200.0,100190.0,0.65337004]
[1734076058641,0.39720115,100200.0,100190.0,0.65337004]
[1734076059038,0.57681419,100200.0,100190.0,0.47549271]
[1734076059241,0.57681419,100200.0,100190.0,0.412697]
[1734076059242,0.39720115,100200.0,100190.0,0.412697]
[1734076060237,0.29737585,100200.0,100190.0,0.412697]
[1734076061340,0.26597585,100200.0,100190.0,0.412697]
[1734076061546,0.26597585,100200.0,100190.0,0.57394431]
[1734076061547,0.21608085,100200.0,100190.0,0.57394431]
[1734076061747,0.21608085,100200.0,100190.0,0.75182164]
[1734076062050,0.26597285,100200.0,100190.0,0.65617433]
[1734076062345,0.36162016,100200.0,100190.0,0.59057433]
[1734076062548,0.34589519,100200.0,100190.0,0.59057433]
[1734076062849,0.25024788,100200.0,100190.0,0.59057433]
[1734076063046,0.25024788,100200.0,100190.0,0.54067733]
[1734076063239,0.25024788,100200.0,100190.0,0.3628]
[1734076066940,0.44570056,100200.0,100190.0,0.3628]
[1734076067136,0.83860056,100200.0,100190.0,0.002]
[1734076067341,0.68904468,100200.0,100190.0,0.002]
[1734076067642,0.86865772,100200.0,100190.0,0.002]
[1734076067952,0.96430503,100200.0,100190.0,0.002]
[1734076068161,0.96430503,100200.0,100170.0,0.3608]
[1734076068162,1.26430503,100200.0,100170.0,0.3608]
[1734076068341,1.26430503,100200.0,100170.0,0.17787733]
[1734076068342,0.74528716,100180.0,100170.0,0.17787733]
[1734076068538,0.65568331,100180.0,100170.0,0.17787733]
[1734076068748,0.049907,100170.0,100160.0,0.21087733]
[1734076069048,0.65571963,100170.0,100160.0,0.033]
[1734076069644,0.7555549,100170.0,100160.0,0.033]
[1734076070444,0.7555549,100170.0,100160.0,0.035]
[1734076071346,0.7565549,100170.0,100160.0,0.042]
[1734076072253,0.87594801,100170.0,100160.0,0.042]
[1734076073260,0.7565549,100170.0,100160.0,0.009]
[1734076073441,0.7887549,100170.0,100160.0,0.009]
[1734076073752,0.96836794,100170.0,100160.0,0.009]
[1734076075453,0.97773196,100170.0,100160.0,0.009]
[1734076076248,0.89376623,100170.0,100160.0,0.009]
[1734076076546,0.79811892,100170.0,100160.0,0.009]
[1734076076746,0.97773196,100170.0,100160.0,0.009]
[1734076077756,0.79811892,100170.0,100160.0,0.009]
[1734076078362,0.91736682,100170.0,100160.0,0.009]
[1734076079850,0.79811892,100170.0,100160.0,0.009]
[1734076080244,0.91733889,100170.0,100160.0,0.009]
[1734076080661,0.79811892,100170.0,100160.0,0.009]
[1734076081154,0.91733846,100170.0,100160.0,0.009]
[1734076083264,0.88451441,100170.0,100160.0,0.009]
[1734076083755,0.82169115,100170.0,100160.0,0.009]
[1734076084063,0.88451441,100170.0,100160.0,0.009]
[1734076085559,0.17012654,100170.0,100160.0,0.48253526]
[1734076085759,0.050907,100170.0,100160.0,0.57523526]
[1734076086764,0.11373026,100170.0,100160.0,0.512412]
[1734076087274,0.050907,100170.0,100160.0,0.512412]
[1734076090772,0.14026654,100170.0,100160.0,0.512412]
[1734076094168,0.25948608,100170.0,100160.0,0.512412]
[1734076094666,0.25948608,100170.0,100160.0,0.4625]
[1734076096777,0.17012654,100170.0,100160.0,0.4625]
[1734076097163,0.31949186,100170.0,100160.0,0.4625]
[1734076098375,0.31949186,100170.0,100160.0,0.64037733]
[1734076099176,0.31949186,100170.0,100160.0,0.69028933]
[1734076100576,0.17012654,100170.0,100160.0,0.69028933]
[1734076100977,0.17012654,100170.0,100160.0,0.64037733]
[1734076101872,0.51502814,100170.0,100160.0,0.57857733]
[1734076102075,0.51502814,100170.0,100160.0,0.4007]
[1734076102571,0.51502814,100170.0,100160.0,0.57857733]
[1734076102776,0.41932713,100170.0,100160.0,0.57857733]
[1734076102975,0.41932713,100170.0,100160.0,0.4007]
[1734076104675,0.30010759,100170.0,100160.0,0.4007]